fUSD/lending_fUSD_20251017
["ID","MTS","AMOUNT","RATE_DAILY","PERIOD"]
[391576308,1760670654497,-902.990538,0.0002857,30]
[391576309,1760670654508,-337.181607,0.0002857,30]
[391576310,1760670654518,-330.111179,0.0002857,30]
[391576311,1760670654530,-154.022984,0.0002857,30]
[391576312,1760670654541,-151.0,0.0002857,30]
[391576313,1760670654551,-902.990538,0.0002857,30]
[391576314,1760670654561,-337.181607,0.0002857,30]
[391576315,1760670654571,-330.111179,0.0002857,30]
[391576316,1760670654581,-151.0,0.0002857,30]
[391576317,1760670654593,-337.181607,0.0002857,30]
[391576318,1760670654603,-330.111179,0.0002857,30]
[391576319,1760670654612,-151.0,0.0002857,30]
[391576320,1760670654622,-337.181607,0.0002857,30]
[391576321,1760670654633,-151.0,0.0002857,30]
[391576322,1760670654642,-284.455764,0.0002857,30]
[391576323,1760670654652,-772.205811,0.0002857,30]
[391576324,1760670654662,-772.205811,0.0002857,30]
[391576325,1760670654672,-152.521588,0.0002857,30]
[391576326,1760670654683,-772.205811,0.0002857,30]
[391576327,1760670654693,-151.0,0.0002857,30]
[391576328,1760670654703,-772.205811,0.0002857,30]
[391576329,1760670654714,-151.0,0.0002857,30]
[391576330,1760670654724,-151.0,0.0002857,30]
[391576331,1760670654735,-255.149941,0.0002857,30]
[391576332,1760670654744,-151.440862,0.0002857,30]
[391576333,1760670654756,-153.386301,0.0002857,30]
[391576334,1760670654766,-151.0,0.0002857,30]
[391576335,1760670654776,-152.039839,0.0002857,30]
[391576336,1760670654786,-163.183486,0.0002857,30]
[391576337,1760670654796,-152.398429,0.0002857,30]
[391576338,1760670654806,-151.0,0.0002857,30]
[391576339,1760670654816,-151.0,0.0002857,30]
[391576340,1760670654825,-151.0,0.0002857,30]
[391576341,1760670654835,-151.0,0.0002857,30]
[391576342,1760670654845,-151.0,0.0002857,30]
[391576343,1760670654855,-151.0,0.0002857,30]
[391576344,1760670654865,-153.706093,0.0002857,30]
[391576345,1760670654875,-301.03,0.00028575,2]
[391576346,1760670654885,-1156.92,0.00028575,2]
[391576347,1760670654895,-150.0,0.00028575,2]
[391576348,1760670654906,-360.14,0.00028575,2]
[391576349,1760670654916,-474.79,0.00028575,2]
[391576350,1760670654926,-474.79,0.00028575,2]
[391576351,1760670654938,-173.6,0.00028575,2]
[391576352,1760670654949,-151.0,0.0002858,30]
[391576353,1760670654959,-151.0,0.0002858,30]
[391576354,1760670654970,-151.0,0.0002858,30]
[391576355,1760670654980,-151.0,0.0002858,30]
[391576356,1760670654990,-196.046799,0.0002858,30]
[391576357,1760670655000,-1908.84249695,0.0002858,2]
[391576358,1760670655010,-515.77203452,0.0002858,2]
[391576359,1760670655020,-270.1936054,0.0002858,2]
[391576360,1760670655030,-192.53407811,0.0002858,2]
[391576361,1760670655041,-10115.48762669,0.00028586,2]
[391576362,1760670655051,-1166.0,0.00028602,14]
[391576363,1760670655061,-354.2,0.00028603,2]
[391576364,1760670655071,-164.77,0.0002862,2]
[391576365,1760670655081,-168.96571444,0.0002864,12]
[391576366,1760670655091,-1166.1128952,0.00028657,14]
[391576367,1760670655101,-82918.0,0.00028658,2]
[391576368,1760670655111,-168.24,0.00028658,2]
[391576369,1760670655121,-150.0,0.00028658,2]
[391576370,1760670655130,-168.24,0.00028658,2]
[391576371,1760670655140,-150.0,0.00028658,2]
[391576372,1760670655150,-168.24,0.00028658,2]
[391576373,1760670655160,-151.0,0.00028658,30]
[391576374,1760670655169,-151.0,0.00028658,30]
[391576375,1760670655179,-151.0,0.00028658,30]
[391576376,1760670655189,-151.0,0.00028658,30]
[391576377,1760670655199,-180.907993,0.00028658,30]
[391576378,1760670655209,-180.907993,0.00028658,30]
[391576379,1760670655218,-151.0,0.00028658,30]
[391576380,1760670655228,-180.907993,0.00028658,30]
[391576381,1760670655239,-180.907993,0.00028658,30]
[391576382,1760670655251,-151.0,0.00028658,30]
[391576383,1760670655268,-151.0,0.00028658,30]
[391576384,1760670655284,-151.0,0.00028658,30]
[391576385,1760670655297,-151.0,0.00028658,30]
[391576386,1760670655312,-151.0,0.00028658,30]
[391576387,1760670655324,-151.0,0.00028658,30]
[391576388,1760670655336,-151.0,0.00028658,30]
[391576389,1760670655349,-151.0,0.00028658,30]
[391576390,1760670655362,-235.671819,0.00028658,30]
[391576391,1760670655376,-151.0,0.00028658,30]
[391576392,1760670655388,-151.0,0.00028658,30]
[391576393,1760670655401,-235.671819,0.00028658,30]
[391576394,1760670655415,-151.0,0.00028658,30]
[391576395,1760670655428,-235.671819,0.00028658,30]
[391576396,1760670655441,-151.0,0.00028658,30]
[391576397,1760670655455,-223.082902,0.00028658,30]
[391576398,1760670655469,-235.671819,0.00028658,30]
[391576399,1760670655481,-264.278968,0.00028658,30]
[391576400,1760670655494,-151.0,0.00028658,30]
[391576401,1760670655506,-151.0,0.00028658,30]
[391576402,1760670655518,-155.159159,0.00028658,30]
[391576403,1760670655528,-151.0,0.00028658,30]
[391576404,1760670655540,-151.0,0.00028658,30]
[391576405,1760670655553,-151.0,0.00028658,30]
[391576406,1760670655566,-158.769626,0.00028658,30]
[391576407,1760670655579,-186.523294,0.00028658,30]
[391576408,1760670655592,-167.330538,0.00028658,30]
[391576409,1760670655605,-167.330538,0.00028658,30]
[391576410,1760670655618,-167.330538,0.00028658,30]
[391576411,1760670655631,-167.330538,0.00028658,30]
[391576412,1760670655645,-151.0,0.00028658,30]
[391576413,1760670655659,-151.0,0.00028658,30]
[391576414,1760670655672,-151.0,0.00028658,30]
[391576415,1760670655687,-151.0,0.00028658,30]
[391576416,1760670655701,-153.008005,0.00028658,30]
[391576417,1760670655714,-151.0,0.00028658,30]
[391576418,1760670655730,-151.0,0.00028658,30]
[391576419,1760670655742,-151.0,0.00028658,30]
[391576420,1760670655755,-151.0,0.00028658,30]
[391576421,1760670655768,-151.0,0.00028658,30]
[391576422,1760670655779,-151.0,0.00028658,30]
[391576423,1760670655792,-269.84,0.00028658,30]
[391576424,1760670655805,-151.0,0.00028658,30]
[391576425,1760670655817,-206.735673,0.00028658,30]
[391576426,1760670655831,-269.84,0.00028658,30]
[391576427,1760670655844,-151.0,0.00028658,30]
[391576428,1760670655858,-269.84,0.00028658,30]
[391576429,1760670655872,-151.0,0.00028658,30]
[391576430,1760670655884,-151.0,0.00028658,30]
[391576431,1760670655896,-151.0,0.00028658,30]
[391576432,1760670655908,-269.84,0.00028658,30]
[391576433,1760670655919,-151.0,0.00028658,30]
[391576434,1760670655931,-151.0,0.00028658,30]
[391576435,1760670655945,-151.0,0.00028658,30]
[391576436,1760670655957,-151.0,0.00028658,30]
[391576437,1760670655968,-151.0,0.00028658,30]
[391576438,1760670655980,-151.0,0.00028658,30]
[391576439,1760670655991,-151.0,0.00028658,30]
[391576440,1760670656004,-151.0,0.00028658,30]
[391576441,1760670656019,-160.6058,0.00028658,30]
[391576442,1760670656033,-151.847917,0.00028658,30]
[391576443,1760670656044,-156.577027,0.00028658,15]
[391576444,1760670656055,-151.0,0.00028658,30]
[391576445,1760670656066,-152.171921,0.00028658,30]
[391576446,1760670656078,-151.0,0.00028658,30]
[391576447,1760670656089,-151.0,0.00028658,30]
[391576448,1760670656102,-151.0,0.00028658,30]
[391576449,1760670656114,-152.145842,0.00028658,30]
[391576450,1760670656127,-151.0,0.00028658,30]
[391576451,1760670656141,-151.0,0.00028658,30]
[391576452,1760670656154,-202.376214,0.00028658,30]
[391576453,1760670656166,-151.0,0.00028658,30]
[391576454,1760670656177,-151.0,0.00028658,30]
[391576455,1760670656190,-151.0,0.00028658,30]
[391576456,1760670656202,-151.0,0.00028658,30]
[391576457,1760670656214,-151.0,0.00028658,30]
[391576458,1760670656225,-151.0,0.00028658,30]
[391576459,1760670656239,-154.195232,0.00028658,30]
[391576460,1760670656251,-152.878066,0.00028658,30]
[391576461,1760670656265,-160.225959,0.00028658,30]
[391576462,1760670656277,-151.0,0.00028658,30]
[391576463,1760670656289,-151.0,0.00028658,30]
[391576464,1760670656300,-151.0,0.00028658,30]
[391576465,1760670656313,-151.0,0.00028658,30]
[391576466,1760670656324,-345.868089,0.00028658,30]
[391576467,1760670656336,-202.531162,0.00028658,30]
[391576468,1760670656348,-345.868089,0.00028658,30]
[391576469,1760670656360,-152.971445,0.00028658,30]
[391576470,1760670656381,-151.0,0.00028658,30]
[391576471,1760670656392,-345.868089,0.00028658,30]
[391576472,1760670656404,-345.868089,0.00028658,30]
[391576473,1760670656416,-151.860639,0.00028658,30]
[391576474,1760670656429,-151.0,0.00028658,30]
[391576475,1760670656440,-151.0,0.00028658,30]
[391576476,1760670656453,-151.0,0.00028658,30]
[391576477,1760670656465,-151.0,0.00028658,30]
[391576478,1760670656477,-151.0,0.00028658,30]
[391576479,1760670656489,-154.249667,0.00028658,30]
[391576480,1760670656500,-151.0,0.00028658,30]
[391576481,1760670656512,-3170.315011,0.00028658,30]
[391576482,1760670656525,-151.0,0.00028658,30]
[391576483,1760670656536,-3170.315011,0.00028658,30]
[391576484,1760670656549,-151.540425,0.00028658,30]
[391576485,1760670656562,-3170.315011,0.00028658,30]
[391576486,1760670656574,-151.0,0.00028658,30]
[391576487,1760670656586,-3170.315011,0.00028658,30]
[391576488,1760670656598,-151.0,0.00028658,30]
[391576489,1760670656610,-151.0,0.00028658,30]
[391576490,1760670656622,-151.0,0.00028658,30]
[391576491,1760670656634,-314.232976,0.00028658,30]
[391576492,1760670656646,-151.0,0.00028658,30]
[391576493,1760670656658,-314.232976,0.00028658,30]
[391576494,1760670656669,-314.232976,0.00028658,30]
[391576495,1760670656680,-314.232976,0.00028658,30]
[391576496,1760670656694,-260.36014,0.00028658,30]
[391576497,1760670656717,-157.657296,0.00028658,30]
[391576498,1760670656737,-260.36014,0.00028658,30]
[391576499,1760670656751,-260.36014,0.00028658,30]
[391576500,1760670656763,-260.36014,0.00028658,30]
[391576501,1760670656775,-151.0,0.00028658,30]
[391576502,1760670656788,-151.0,0.00028658,30]
[391576503,1760670656800,-151.0,0.00028658,30]
[391576504,1760670656812,-373.521676,0.00028658,30]
[391576505,1760670656825,-373.521676,0.00028658,30]
[391576506,1760670656837,-151.0,0.00028658,30]
[391576507,1760670656849,-373.521676,0.00028658,30]
[391576508,1760670656861,-373.521676,0.00028658,30]
[391576509,1760670656873,-152.59,0.0002866,15]
[391576510,1760670656885,-1000.0,0.00028666,7]
[391576511,1760670656898,-381.0,0.00028672,7]
[391576512,1760670656910,-151.0,0.00028677,7]
[391576513,1760670656927,-151.0,0.00028677,7]
[391576514,1760670656939,-161.28953375,0.00028677,7]
[391576515,1760670656952,-668.94734385,0.00028679,10]
[391576516,1760670656964,-150.0,0.00028679,2]
[391576517,1760670656976,-90935.76364581,0.0002868,2]
[391576518,1760670657362,-1.6e-07,0.0002868,2]
[391576519,1760670657504,-474.79,0.00026055,2]
[391576520,1760670657516,-325.15808014,0.00027071,2]
[391576521,1760670657528,-715.23276726,0.00027235,2]
[391576522,1760670657544,-150.0,0.00027397,60]
[391576523,1760670657555,-173.10551163,0.00027452,60]
[391576524,1760670657567,-150.0,0.00027616,60]
[391576525,1760670657579,-187.82819955,0.00027671,60]
[391576526,1760670657590,-47314.67298958,0.0002868,2]
[391576527,1760670657604,-386.36971684,0.0002868,2]
[391576528,1760670657617,-6555.6,0.0002868,2]
[391576529,1760670660798,320.166,0.00027143,120]
[391576530,1760670671482,170.06,0.00027397,120]
[391576531,1760670721917,1775.185,0.00027142,120]
[391576532,1760670722503,1000.0,0.00027143,120]
[391576539,1760671116624,604.60109081,0.00027396,120]
[391576588,1760671715696,-548.6688782,0.00013698,2]
[391576589,1760671716818,-208.01764293,0.00013698,2]
[391576591,1760671718472,-288.36659195,0.00013698,2]
[391576601,1760671749688,208.018,0.00027143,120]
[391576604,1760671805251,-200.0,0.00013013,2]
[391576605,1760671805274,-200.0,0.00013013,2]
[391576606,1760671805296,-200.0,0.00013013,2]
[391576607,1760671805317,-400.0,0.00013698,2]
[391576608,1760671808688,-29.46704294,0.00013698,2]
[391576609,1760671808712,-193.21157189,0.00013699,2]
[391576610,1760671810209,-154.35433313,0.00013699,2]
[391576621,1760671831927,-87.94409498,0.00013699,2]
[391576623,1760671831938,-733.1211607,0.000149,2]
[391576625,1760671831948,-444.9277971,0.00014968,2]
[391576626,1760671831958,-746.52744923,0.00014968,2]
[391576627,1760671831968,-169.97178546,0.00014973,2]
[391576628,1760671831978,-500.0,0.00014973,2]
[391576629,1760671831988,-523.27949388,0.00014973,2]
[391576630,1760671831998,-1200.0,0.00014997,2]
[391576631,1760671832013,-1200.0,0.00014998,2]
[391576632,1760671832023,-300.0,0.00014998,2]
[391576633,1760671832034,-300.0,0.00014998,2]
[391576634,1760671832043,-150.0,0.00014998,2]
[391576635,1760671832054,-500.0,0.00014999,2]
[391576636,1760671832064,-162.74569829,0.00014999,2]
[391576637,1760671832074,-500.0,0.00014999,2]
[391576638,1760671832085,-527.93562294,0.00014999,2]
[391576639,1760671832095,-500.0,0.00014999,2]
[391576640,1760671832106,-500.0,0.00014999,2]
[391576641,1760671832116,-500.0,0.00014999,2]
[391576642,1760671832126,-212.16300872,0.00014999,2]
[391576643,1760671832136,-431.74849286,0.00014999,2]
[391576644,1760671832145,-500.0,0.00014999,2]
[391576645,1760671832155,-483.3528093,0.00014999,2]
[391576646,1760671832165,-500.0,0.00014999,2]
[391576647,1760671832175,-500.0,0.00014999,2]
[391576648,1760671832185,-517.76945153,0.00014999,2]
[391576649,1760671832195,-500.0,0.00014999,2]
[391576650,1760671832204,-500.0,0.00014999,2]
[391576651,1760671832214,-500.0,0.00014999,2]
[391576652,1760671832224,-500.0,0.00014999,2]
[391576653,1760671832233,-343.99239995,0.00014999,2]
[391576654,1760671832243,-500.0,0.00014999,2]
[391576655,1760671832255,-505.13930131,0.00014999,2]
[391576656,1760671832264,-289.19186362,0.00014999,2]
[391576657,1760671832274,-500.0,0.00014999,2]
[391576658,1760671832283,-500.0,0.00014999,2]
[391576659,1760671832293,-500.0,0.00014999,2]
[391576660,1760671832303,-500.0,0.00014999,2]
[391576662,1760671832312,-500.0,0.00014999,2]
[391576663,1760671832322,-500.0,0.00014999,2]
[391576664,1760671832331,-500.0,0.00014999,2]
[391576665,1760671832341,-500.0,0.00014999,2]
[391576666,1760671832351,-500.0,0.00014999,2]
[391576667,1760671832361,-500.0,0.00014999,2]
[391576668,1760671832370,-500.0,0.00014999,2]
[391576669,1760671832380,-500.0,0.00014999,2]
[391576670,1760671832390,-500.0,0.00014999,2]
[391576671,1760671832399,-500.0,0.00014999,2]
[391576673,1760671832409,-500.0,0.00014999,2]
[391576674,1760671832419,-500.0,0.00014999,2]
[391576675,1760671832429,-500.0,0.00014999,2]
[391576676,1760671832439,-500.0,0.00014999,2]
[391576677,1760671832449,-500.0,0.00014999,2]
[391576678,1760671832459,-500.0,0.00014999,2]
[391576680,1760671832469,-500.0,0.00014999,2]
[391576682,1760671832479,-500.0,0.00014999,2]
[391576684,1760671832489,-500.0,0.00014999,2]
[391576686,1760671832498,-500.0,0.00014999,2]
[391576688,1760671832507,-500.0,0.00014999,2]
[391576690,1760671832518,-500.0,0.00014999,2]
[391576691,1760671832528,-500.0,0.00014999,2]
[391576692,1760671832538,-500.0,0.00014999,2]
[391576693,1760671832547,-500.0,0.00014999,2]
[391576694,1760671832557,-500.0,0.00014999,2]
[391576695,1760671832567,-500.0,0.00014999,2]
[391576696,1760671832578,-500.0,0.00014999,2]
[391576697,1760671832588,-500.0,0.00014999,2]
[391576698,1760671832599,-500.0,0.00014999,2]
[391576699,1760671832610,-500.0,0.00014999,2]
[391576700,1760671832619,-500.0,0.00014999,2]
[391576701,1760671832629,-500.0,0.00014999,2]
[391576702,1760671832640,-500.0,0.00014999,2]
[391576703,1760671832650,-500.0,0.00014999,2]
[391576704,1760671832660,-500.0,0.00014999,2]
[391576705,1760671832670,-500.0,0.00014999,2]
[391576706,1760671832680,-500.0,0.00014999,2]
[391576707,1760671832691,-636.20820784,0.00014999,2]
[391576708,1760671832701,-483.38515251,0.00014999,2]
[391576709,1760671832711,-500.0,0.00014999,2]
[391576710,1760671832721,-500.0,0.00014999,2]
[391576711,1760671832732,-500.0,0.00014999,2]
[391576712,1760671832742,-500.0,0.00014999,2]
[391576713,1760671832751,-500.0,0.00014999,2]
[391576714,1760671832761,-89408.09034072,0.00015,2]
[391576715,1760671832775,-56589.12691358,0.00015,2]
[391576716,1760671832796,-1479965.39032538,0.00015,2]
[391576717,1760671832807,-541.95200014,0.00015,2]
[391576718,1760671832819,-433.85880056,0.00015,2]
[391576719,1760671832831,-2609.5598784,0.00015,2]
[391576720,1760671832843,-2199.58879422,0.00015,2]
[391576721,1760671832859,-11304.12637932,0.00015,2]
[391576729,1760671837813,-979.85769543,0.00015,2]
[391576731,1760671837827,-2813.85228289,0.00015,2]
[391576738,1760671837979,-497752.92352727,0.00015,2]
[391576739,1760671837990,-2593933.53119729,0.00015,2]
[391576740,1760671838000,-250.0,0.00015068,2]
[391576741,1760671838014,-304.33839512,0.00015068,2]
[391576742,1760671838024,-168.52,0.00015842,2]
[391576743,1760671838035,-255.0,0.00016123,2]
[391576744,1760671838047,-5000.0,0.000162,5]
[391576745,1760671838057,-922.55301042,0.00016315,2]
[391576746,1760671838067,-1680.0,0.00016415,2]
[391576747,1760671838078,-420.0,0.00016415,2]
[391576748,1760671838090,-420.0,0.00016415,2]
[391576749,1760671838100,-1680.0,0.00016497,2]
[391576750,1760671838111,-444.92779707,0.00016616,2]
[391576751,1760671838121,-207.36682235,0.00017,2]
[391576752,1760671838131,-250.0,0.000181,2]
[391576753,1760671838142,-444.92779707,0.00018264,2]
[391576754,1760671838152,-500.0,0.00018882,2]
[391576755,1760671838163,-444.92779707,0.00019912,2]
[391576756,1760671838173,-11293.93576367,0.0001995,15]
[391576757,1760671838184,-1000.0,0.0002,4]
[391576758,1760671838194,-176.25,0.00020122,2]
[391576759,1760671838204,-435.51,0.00020187,2]
[391576760,1760671838214,-9598.32478538,0.000209,30]
[391576761,1760671838224,-150.99,0.00020951,2]
[391576762,1760671838234,-9999.99,0.00020951,2]
[391576763,1760671838244,-3798.33,0.00020951,2]
[391576764,1760671838254,-999.99,0.00020951,2]
[391576765,1760671838264,-3640.08,0.00020951,2]
[391576766,1760671838274,-499.99,0.00020951,2]
[391576767,1760671838284,-150.99,0.00020951,2]
[391576768,1760671838294,-87100.0,0.00021,2]
[391576769,1760671838304,-444.92779707,0.0002156,2]
[391576770,1760671838315,-500.0,0.00021917,2]
[391576771,1760671838326,-570.22,0.00021917,2]
[391576772,1760671838336,-22782.06,0.00022,7]
[391576773,1760671838346,-500.0,0.00022027,2]
[391576774,1760671838357,-922.5530104,0.00022448,2]
[391576775,1760671838367,-746.52744921,0.00022944,2]
[391576776,1760671838377,-444.92779707,0.00023207,2]
[391576777,1760671838387,-150.0,0.00023275,2]
[391576778,1760671838397,-166.66,0.00023291,30]
[391576779,1760671838409,-209.78,0.00023368,2]
[391576780,1760671838418,-166.66,0.00023782,30]
[391576781,1760671838428,-166.66,0.00024272,30]
[391576782,1760671838438,-166.66,0.00024762,30]
[391576783,1760671838449,-481909.18870713,0.000248,9]
[391576784,1760671838458,-488060.365315,0.000248,3]
[391576785,1760671838468,-151.0,0.000248,7]
[391576786,1760671838477,-151.0,0.000248,7]
[391576787,1760671838487,-152.132561,0.000248,7]
[391576788,1760671838497,-299.61378136,0.000248,7]
[391576789,1760671838507,-198.066708,0.000248,7]
[391576790,1760671838517,-198.066708,0.000248,7]
[391576791,1760671838526,-198.066708,0.000248,7]
[391576792,1760671838536,-151.0,0.000248,7]
[391576793,1760671838546,-198.066708,0.000248,7]
[391576794,1760671838557,-151.0,0.000248,7]
[391576795,1760671838567,-463.323487,0.000248,7]
[391576796,1760671838577,-463.323487,0.000248,7]
[391576797,1760671838587,-463.323487,0.000248,7]
[391576798,1760671838597,-463.323487,0.000248,7]
[391576799,1760671838606,-151.0,0.000248,7]
[391576800,1760671838616,-151.0,0.000248,7]
[391576801,1760671838627,-151.0,0.000248,7]
[391576802,1760671838637,-151.0,0.000248,7]
[391576803,1760671838648,-151.0,0.000248,7]
[391576804,1760671838657,-151.0,0.000248,7]
[391576805,1760671838668,-541.794323,0.000248,7]
[391576806,1760671838678,-541.794323,0.000248,7]
[391576807,1760671838688,-151.0,0.000248,7]
[391576808,1760671838699,-541.794323,0.000248,7]
[391576809,1760671838709,-541.794323,0.000248,7]
[391576810,1760671838721,-151.0,0.000248,7]
[391576811,1760671838731,-151.0,0.000248,7]
[391576812,1760671838742,-151.0,0.000248,7]
[391576813,1760671838752,-444.92779707,0.00024855,2]
[391576814,1760671838762,-81919.2966617,0.000249,3]
[391576815,1760671838773,-500.0,0.00024932,2]
[391576816,1760671838783,-22782.06,0.00025,7]
[391576817,1760671838794,-5000.0,0.00025216,2]
[391576818,1760671838804,-4251.98,0.00025224,2]
[391576819,1760671838814,-166.66,0.00025253,30]
[391576820,1760671838824,-267.0,0.00025266,2]
[391576821,1760671838834,-1000.0,0.00025486,2]
[391576822,1760671838844,-457.17,0.00025602,2]
[391576823,1760671838855,-166.66,0.00025743,30]
[391576824,1760671838865,-1000.0,0.00025771,2]
[391576825,1760671838874,-150.00000001,0.00025792,4]
[391576826,1760671838885,-150.0,0.00025792,4]
[391576827,1760671838895,-150.0,0.00025792,4]
[391576828,1760671838914,-150.0,0.00025792,4]
[391576829,1760671838925,-150.0,0.00025792,4]
[391576830,1760671838936,-150.0,0.00025792,4]
[391576831,1760671838947,-150.0,0.00025792,4]
[391576832,1760671838957,-150.0,0.00025792,4]
[391576833,1760671838967,-150.0,0.00025792,4]
[391576834,1760671838977,-150.0,0.00025792,4]
[391576835,1760671838987,-150.0,0.00025792,4]
[391576836,1760671838997,-150.0,0.00025792,4]
[391576837,1760671839011,-150.00000001,0.00025792,4]
[391576838,1760671839021,-150.0,0.00025792,4]
[391576839,1760671839031,-150.0,0.00025792,4]
[391576840,1760671839041,-150.0,0.00025792,4]
[391576841,1760671839052,-150.0,0.00025792,4]
[391576842,1760671839062,-238.0,0.00025814,7]
[391576843,1760671839072,-150.0,0.00025843,4]
[391576844,1760671839084,-1000.0,0.00025852,2]
[391576845,1760671839094,-166.66,0.00025889,2]
[391576846,1760671839104,-150.0,0.00025894,4]
[391576847,1760671839115,-238.0,0.00025936,2]
[391576848,1760671839126,-1400.0,0.0002594,2]
[391576849,1760671839136,-150.0,0.00025945,4]
[391576850,1760671839147,-9211.34798985,0.00025956,2]
[391576851,1760671839157,-152.72969902,0.00025956,2]
[391576852,1760671839168,-668.65185757,0.00025956,2]
[391576853,1760671839178,-267.46074303,0.00025956,2]
[391576854,1760671839189,-5005.09,0.00025971,2]
[391576855,1760671839200,-2375.0,0.00025992,7]
[391576856,1760671839210,-150.0,0.00025996,4]
[391576857,1760671839221,-210.31326568,0.00026,2]
[391576858,1760671839230,-526.0,0.00026,2]
[391576859,1760671839248,-212.0,0.00026,2]
[391576860,1760671839259,-267.0,0.00026005,2]
[391576861,1760671839270,-9552.16786547,0.00026011,2]
[391576862,1760671839281,-150.0,0.00026048,4]
[391576863,1760671839291,-9905.5980765,0.00026066,2]
[391576864,1760671839301,-1000.0,0.00026068,2]
[391576865,1760671839311,-207.06072452,0.00026089,2]
[391576866,1760671839322,-150.0,0.00026099,4]
[391576867,1760671839332,-200.0,0.000261,2]
[391576868,1760671839342,-200.0,0.000261,2]
[391576869,1760671839353,-197.25900208,0.000261,2]
[391576870,1760671839364,-322.6107,0.000261,2]
[391576871,1760671839374,-151.0,0.000261,2]
[391576872,1760671839384,-695.39793187,0.000261,2]
[391576873,1760671839394,-500.0,0.000261,2]
[391576874,1760671839405,-151.0,0.000261,2]
[391576875,1760671839415,-500.0,0.000261,2]
[391576876,1760671839425,-151.0,0.000261,2]
[391576877,1760671839435,-151.0,0.000261,2]
[391576878,1760671839445,-500.0,0.000261,2]
[391576879,1760671839455,-151.0,0.000261,2]
[391576880,1760671839465,-500.0,0.000261,2]
[391576881,1760671839476,-151.0,0.000261,2]
[391576882,1760671839487,-151.0,0.000261,2]
[391576883,1760671839497,-500.0,0.000261,2]
[391576884,1760671839507,-151.0,0.000261,2]
[391576885,1760671839517,-151.0,0.000261,2]
[391576886,1760671839527,-500.0,0.000261,2]
[391576887,1760671839537,-151.0,0.000261,2]
[391576888,1760671839547,-151.0,0.000261,2]
[391576889,1760671839558,-500.0,0.000261,2]
[391576890,1760671839568,-151.0,0.000261,2]
[391576891,1760671839578,-151.0,0.000261,2]
[391576892,1760671839588,-500.0,0.000261,2]
[391576893,1760671839598,-151.0,0.000261,2]
[391576894,1760671839614,-250.0,0.000261,2]
[391576895,1760671839625,-500.0,0.000261,2]
[391576896,1760671839635,-151.0,0.000261,2]
[391576897,1760671839645,-151.0,0.000261,2]
[391576898,1760671839655,-250.0,0.000261,2]
[391576899,1760671839665,-500.0,0.000261,2]
[391576900,1760671839676,-151.0,0.000261,2]
[391576901,1760671839686,-151.0,0.000261,2]
[391576902,1760671839697,-250.0,0.000261,2]
[391576903,1760671839707,-500.0,0.000261,2]
[391576904,1760671839717,-151.0,0.000261,2]
[391576906,1760671839728,-151.0,0.000261,2]
[391576908,1760671839737,-250.0,0.000261,2]
[391576911,1760671839748,-500.0,0.000261,2]